fUSD/lending_fUSD_20250503
["ID","MTS","AMOUNT","RATE_DAILY","PERIOD"]
[359721760,1746279048692,-500.0,0.00019999,2]
[359721761,1746279048702,-500.0,0.00019999,2]
[359721762,1746279048713,-628.07395844,0.00019999,2]
[359721763,1746279048722,-518.92159158,0.00019999,2]
[359721764,1746279048734,-500.0,0.00019999,2]
[359721765,1746279048744,-351.77,0.00019999,2]
[359721766,1746279048754,-1700.0,0.00019999,2]
[359721767,1746279048764,-500.0,0.00019999,2]
[359721768,1746279048774,-500.0,0.00019999,2]
[359721769,1746279048783,-500.0,0.00019999,2]
[359721770,1746279048793,-500.0,0.00019999,2]
[359721771,1746279048803,-500.0,0.00019999,2]
[359721772,1746279048812,-500.0,0.00019999,2]
[359721773,1746279048822,-353.05,0.00019999,2]
[359721774,1746279048832,-66823.38330018,0.00019999,2]
[359721775,1746279048841,-15659.24018654,0.00019999,2]
[359721776,1746279048850,-1484.0,0.00019999,2]
[359721777,1746279048859,-482.17675895,0.0002,2]
[359721778,1746279048869,-2298899.31281033,0.0002,2]
[359721779,1746279048879,-1782580.9879341,0.0002,2]
[359721780,1746279048891,-565.32665385,0.0002,2]
[359721781,1746279048903,-7628.32685068,0.0002,2]
[359721782,1746279048914,-1275.09490166,0.0002,2]
[359721783,1746279048926,-323423.65913021,0.0002,2]
[359721784,1746279049315,-450.0,0.00019727,2]
[359721785,1746279049325,-450.0,0.00019728,2]
[359721786,1746279049335,-552.11836136,0.0002,2]
[359721787,1746279050476,-450.0,0.00019727,2]
[359721788,1746279050485,-290.49247509,0.00019728,2]
[359721789,1746279050532,-159.50752491,0.00019728,2]
[359721790,1746279050542,-519.91,0.00019728,2]
[359721791,1746279050551,-450.0,0.00019728,2]
[359721792,1746279050561,-450.0,0.00019728,2]
[359721793,1746279050570,-542.70237509,0.0002,2]
[359721794,1746279050582,-1798.6,0.0002,2]
[359721795,1746279050641,-3777.16,0.0002,2]
[359721796,1746279050653,-2893.26,0.0002,2]
[359721797,1746279050664,-5895.53675109,0.0002,2]
[359721819,1746279110007,189.2448442,0.0003,120]
[359721839,1746279131152,250.0,0.00019017,7]
[359721862,1746279206830,3006.4,0.00019,2]
[359721865,1746279220068,196.91,0.00019002,2]
[359721879,1746279338230,500.0,0.0003287,60]
[359721889,1746279422730,721.94,0.00019071,2]
[359721890,1746279430269,249.8992,0.00032877,60]
[359721895,1746279522454,14000.0,0.00018871,2]
[359721898,1746279554834,1000.0,0.00018834,2]
[359721903,1746279661003,378.9065996,0.00032876,60]
[359721910,1746279748881,169.96154,0.0002,23]
[359721911,1746279753954,250.0,0.00017,2]
[359721913,1746279755542,152.0,0.00019,2]
[359721914,1746279755566,148.0,0.00019,2]
[359721916,1746279762637,-352.37964923,0.00019627,2]
[359721917,1746279765968,-212.00044777,0.00019627,2]
[359721921,1746279830839,-338.6999334,0.00019528,2]
[359721922,1746279840500,-225.6801636,0.00019528,2]
[359721941,1746280054313,169.96154,0.000248,34]
[359721946,1746280135641,-3706.53290264,0.00019626,2]
[359721947,1746280135664,-495.27536471,0.00019626,2]
[359721948,1746280135686,-798.19173265,0.00019656,2]
[359722134,1746280191304,588.62,0.00016871,2]
[359722135,1746280191708,588.62,0.00019135,2]
[359722140,1746280223031,250.0,0.0001878,7]
[359722145,1746280231328,-4546.5432,0.00019542,2]
[359722146,1746280231341,-300.0,0.00019641,2]
[359722147,1746280231355,-328.29817185,0.00019641,2]
[359722148,1746280231385,-475.0,0.00019641,2]
[359722149,1746280231444,-396.70182815,0.00019641,2]
[359722150,1746280231454,-60.6609768,0.00019642,2]
[359722151,1746280231466,-547.25853702,0.00019642,2]
[359722320,1746280233239,196.91,0.00018784,2]
[359722403,1746280238026,-1425.95169219,0.0001964,3]
[359722404,1746280238053,-1033.85531397,0.0001964,3]
[359722405,1746280238063,-348185.58041988,0.00019642,2]
[359722406,1746280238072,-28159.2320049,0.00019642,2]
[359722407,1746280238081,-12022.585605,0.00019642,2]
[359722408,1746280238093,-200.0,0.00019649,2]
[359722409,1746280238102,-3706.53290261,0.00019656,2]
[359722410,1746280238112,-495.27536466,0.00019656,2]
[359722411,1746280238121,-3706.53290261,0.00019687,2]
[359722412,1746280238130,-495.27536466,0.00019687,2]
[359722413,1746280238139,-500.0,0.00019699,2]
[359722414,1746280238149,-500.0,0.00019699,2]
[359722415,1746280238158,-500.0,0.00019699,2]
[359722416,1746280238168,-500.0,0.00019699,2]
[359722417,1746280238177,-175.64649186,0.00019699,2]
[359722418,1746280238186,-500.0,0.00019699,2]
[359722419,1746280238196,-500.0,0.00019699,2]
[359722420,1746280238205,-500.0,0.00019699,2]
[359722421,1746280238214,-500.0,0.00019699,2]
[359722422,1746280238223,-1000.0,0.000197,2]
[359722423,1746280238232,-70533.39211185,0.000197,2]
[359722424,1746280238241,-207.4,0.00019714,2]
[359722425,1746280238251,-151.0,0.00019715,2]
[359722426,1746280238260,-668.65185757,0.00019715,2]
[359722427,1746280238270,-3706.53290261,0.00019717,2]
[359722428,1746280238279,-495.27536466,0.00019717,2]
[359722429,1746280238289,-450.0,0.00019725,2]
[359722430,1746280238298,-450.0,0.00019725,2]
[359722431,1746280238307,-450.0,0.00019725,2]
[359722432,1746280238316,-450.0,0.00019725,2]
[359722433,1746280238326,-450.0,0.00019725,2]
[359722434,1746280238335,-450.0,0.00019725,2]
[359722435,1746280238348,-450.0,0.00019725,2]
[359722436,1746280238358,-450.0,0.00019725,2]
[359722437,1746280238367,-229.13136487,0.00019725,2]
[359722438,1746280238377,-450.0,0.00019725,2]
[359722439,1746280238386,-450.0,0.00019725,2]
[359722440,1746280238396,-424.0259524,0.00019725,2]
[359722441,1746280238405,-450.0,0.00019725,2]
[359722442,1746280238415,-450.0,0.00019725,2]
[359722443,1746280238424,-450.0,0.00019725,2]
[359722444,1746280238434,-450.0,0.00019725,2]
[359722445,1746280238445,-450.0,0.00019725,2]
[359722446,1746280238455,-450.0,0.00019725,2]
[359722447,1746280238465,-450.0,0.00019725,2]
[359722448,1746280238475,-450.0,0.00019725,2]
[359722449,1746280238484,-450.0,0.00019725,2]
[359722450,1746280238494,-450.0,0.00019725,2]
[359722451,1746280238503,-450.0,0.00019725,2]
[359722452,1746280238513,-450.0,0.00019725,2]
[359722453,1746280238524,-450.0,0.00019725,2]
[359722454,1746280238534,-450.0,0.00019725,2]
[359722455,1746280238545,-450.0,0.00019725,2]
[359722456,1746280238554,-450.0,0.00019725,2]
[359722457,1746280238564,-450.0,0.00019725,2]
[359722458,1746280238574,-450.0,0.00019725,2]
[359722459,1746280238583,-450.0,0.00019725,2]
[359722460,1746280238592,-450.0,0.00019725,2]
[359722461,1746280238602,-450.0,0.00019725,2]
[359722462,1746280238611,-450.0,0.00019725,2]
[359722463,1746280238621,-450.0,0.00019725,2]
[359722464,1746280238631,-450.0,0.00019725,2]
[359722465,1746280238640,-450.0,0.00019725,2]
[359722466,1746280238650,-450.0,0.00019725,2]
[359722467,1746280238660,-450.0,0.00019725,2]
[359722468,1746280238669,-450.0,0.00019725,2]
[359722469,1746280238679,-616.09,0.00019725,2]
[359722470,1746280238688,-450.0,0.00019725,2]
[359722471,1746280238698,-450.0,0.00019725,2]
[359722472,1746280238707,-450.0,0.00019725,2]
[359722473,1746280238717,-450.0,0.00019725,2]
[359722474,1746280238726,-316.71372366,0.00019725,2]
[359722475,1746280238739,-450.0,0.00019725,2]
[359722476,1746280238749,-450.0,0.00019725,2]
[359722477,1746280238758,-450.0,0.00019725,2]
[359722478,1746280238768,-450.0,0.00019725,2]
[359722479,1746280238779,-450.0,0.00019725,2]
[359722480,1746280238788,-588.70547733,0.00019725,2]
[359722481,1746280238798,-450.0,0.00019725,2]
[359722482,1746280238808,-450.0,0.00019725,2]
[359722483,1746280238818,-450.0,0.00019725,2]
[359722484,1746280238827,-450.0,0.00019725,2]
[359722485,1746280238837,-450.0,0.00019725,2]
[359722486,1746280238847,-450.0,0.00019725,2]
[359722487,1746280238857,-450.0,0.00019725,2]
[359722488,1746280238867,-450.0,0.00019725,2]
[359722489,1746280238877,-450.0,0.00019725,2]
[359722490,1746280238887,-551.6356764,0.00019725,2]
[359722491,1746280238896,-450.0,0.00019725,2]
[359722492,1746280238906,-450.0,0.00019725,2]
[359722493,1746280238915,-450.0,0.00019725,2]
[359722494,1746280238924,-450.0,0.00019725,2]
[359722495,1746280238934,-450.0,0.00019725,2]
[359722496,1746280238944,-450.0,0.00019725,2]
[359722497,1746280238953,-450.0,0.00019725,2]
[359722498,1746280238963,-450.0,0.00019725,2]
[359722499,1746280238972,-450.0,0.00019725,2]
[359722500,1746280238982,-450.0,0.00019725,2]
[359722501,1746280238991,-450.0,0.00019725,2]
[359722502,1746280239001,-450.0,0.00019725,2]
[359722503,1746280239010,-450.0,0.00019725,2]
[359722504,1746280239019,-450.0,0.00019725,2]
[359722505,1746280239029,-450.0,0.00019725,2]
[359722506,1746280239038,-450.0,0.00019725,2]
[359722507,1746280239047,-450.0,0.00019725,2]
[359722508,1746280239056,-450.0,0.00019725,2]
[359722509,1746280239066,-450.0,0.00019725,2]
[359722510,1746280239075,-450.0,0.00019725,2]
[359722511,1746280239085,-450.0,0.00019725,2]
[359722512,1746280239096,-450.0,0.00019725,2]
[359722513,1746280239105,-450.0,0.00019725,2]
[359722514,1746280239115,-450.0,0.00019725,2]
[359722515,1746280239124,-560.4,0.00019725,2]
[359722517,1746280239133,-512.28569738,0.00019725,2]
[359722518,1746280239142,-450.0,0.00019725,2]
[359722519,1746280239152,-450.0,0.00019725,2]
[359722520,1746280239161,-478.41120817,0.00019725,2]
[359722522,1746280239170,-450.0,0.00019725,2]
[359722523,1746280239179,-500.0,0.00019725,2]
[359722524,1746280239188,-450.0,0.00019725,2]
[359722525,1746280239198,-450.0,0.00019725,2]
[359722526,1746280239207,-450.0,0.00019725,2]
[359722527,1746280239216,-450.0,0.00019725,2]
[359722528,1746280239226,-450.0,0.00019725,2]
[359722529,1746280239235,-450.0,0.00019725,2]
[359722530,1746280239245,-450.0,0.00019725,2]
[359722531,1746280239255,-450.0,0.00019725,2]
[359722533,1746280239264,-450.0,0.00019725,2]
[359722534,1746280239273,-450.0,0.00019725,2]
[359722535,1746280239282,-4430.09,0.00019725,2]
[359722536,1746280239292,-450.0,0.00019725,2]
[359722537,1746280239301,-450.0,0.00019725,2]
[359722538,1746280239310,-450.0,0.00019725,2]
[359722539,1746280239320,-450.0,0.00019725,2]
[359722540,1746280239330,-501.65,0.00019725,2]
[359722541,1746280239339,-450.0,0.00019725,2]
[359722542,1746280239349,-450.0,0.00019725,2]
[359722543,1746280239359,-450.0,0.00019725,2]
[359722544,1746280239368,-450.0,0.00019725,2]
[359722545,1746280239378,-450.0,0.00019725,2]
[359722547,1746280239388,-914.87,0.00019725,2]
[359722549,1746280239398,-450.0,0.00019725,2]
[359722552,1746280239407,-370.09115084,0.00019725,2]
[359722554,1746280239417,-450.0,0.00019725,2]
[359722555,1746280239426,-1021.96409913,0.00019725,2]
[359722557,1746280239435,-450.0,0.00019725,2]
[359722559,1746280239444,-501.5,0.00019725,2]
[359722560,1746280239454,-450.0,0.00019725,2]
[359722561,1746280239464,-450.0,0.00019725,2]
[359722563,1746280239473,-450.0,0.00019725,2]
[359722565,1746280239483,-450.0,0.00019725,2]
[359722567,1746280239492,-450.0,0.00019725,2]
[359722569,1746280239501,-450.0,0.00019725,2]
[359722571,1746280239510,-450.0,0.00019725,2]
[359722573,1746280239519,-450.0,0.00019725,2]
[359722575,1746280239529,-450.0,0.00019725,2]
[359722577,1746280239538,-450.0,0.00019725,2]
[359722579,1746280239547,-450.0,0.00019725,2]
[359722581,1746280239556,-2005.92,0.00019725,2]
[359722583,1746280239565,-450.0,0.00019725,2]
[359722585,1746280239574,-450.0,0.00019725,2]
[359722587,1746280239584,-450.0,0.00019725,2]
[359722589,1746280239593,-450.0,0.00019725,2]
[359722591,1746280239602,-450.0,0.00019725,2]
[359722593,1746280239611,-450.0,0.00019725,2]
[359722595,1746280239620,-450.0,0.00019725,2]
[359722597,1746280239630,-450.0,0.00019725,2]
[359722599,1746280239639,-292.02532154,0.00019725,2]
[359722600,1746280239649,-736.16,0.00019725,2]
[359722601,1746280239658,-450.0,0.00019725,2]
[359722602,1746280239667,-450.0,0.00019725,2]
[359722603,1746280239676,-450.0,0.00019725,2]
[359722604,1746280239685,-484.47874522,0.00019725,2]
[359722605,1746280239694,-1571.22744,0.00019725,2]
[359722606,1746280239704,-450.0,0.00019725,2]
[359722607,1746280239713,-450.0,0.00019725,2]
[359722608,1746280239722,-450.0,0.00019725,2]
[359722609,1746280239734,-450.0,0.00019725,2]
[359722610,1746280239743,-450.0,0.00019725,2]
[359722611,1746280239753,-450.0,0.00019725,2]
[359722612,1746280239762,-450.0,0.00019725,2]
[359722613,1746280239772,-4246.21,0.00019725,2]
[359722614,1746280239782,-450.0,0.00019725,2]
[359722615,1746280239792,-450.0,0.00019725,2]
[359722616,1746280239801,-512.91345261,0.00019725,2]
[359722617,1746280239812,-450.0,0.00019725,2]
[359722618,1746280239821,-538.64438554,0.00019725,2]
[359722619,1746280239830,-450.0,0.00019725,2]
[359722620,1746280239840,-450.0,0.00019725,2]
[359722621,1746280239850,-1189.089663,0.00019725,2]
[359722622,1746280239859,-450.0,0.00019725,2]
[359722623,1746280239868,-450.0,0.00019725,2]
[359722624,1746280239878,-450.0,0.00019725,2]
[359722625,1746280239887,-450.0,0.00019725,2]
[359722626,1746280239897,-450.0,0.00019725,2]
[359722627,1746280239906,-450.0,0.00019725,2]
[359722628,1746280239916,-450.0,0.00019725,2]
[359722629,1746280239926,-299.64495513,0.00019725,2]
[359722630,1746280239935,-194.10746415,0.00019725,2]
[359722631,1746280239946,-500.0,0.00019725,2]
[359722632,1746280239957,-187.51902884,0.00019725,2]
[359722633,1746280239967,-335.38154665,0.00019725,2]
[359722634,1746280239977,-558.70888029,0.00019725,2]
[359722635,1746280239986,-186.20409185,0.00019725,2]
[359722636,1746280239997,-500.0,0.00019725,2]
[359722637,1746280240006,-500.0,0.00019725,2]
[359722638,1746280240017,-500.0,0.00019725,2]
[359722639,1746280240027,-500.0,0.00019725,2]
[359722640,1746280240038,-500.0,0.00019725,2]
[359722641,1746280240049,-500.0,0.00019725,2]
[359722642,1746280240060,-500.0,0.00019725,2]
[359722643,1746280240070,-450.0,0.00019726,2]
[359722644,1746280240080,-450.0,0.00019726,2]
[359722645,1746280240089,-450.0,0.00019726,2]
[359722646,1746280240101,-400.0,0.00019726,2]
[359722647,1746280240111,-400.0,0.00019726,2]
[359722648,1746280240123,-416.91615072,0.00019726,2]
[359722649,1746280240133,-450.0,0.00019726,2]
[359722650,1746280240143,-450.0,0.00019726,2]
[359722651,1746280240153,-450.0,0.00019726,2]
[359722652,1746280240162,-450.0,0.00019726,2]
[359722653,1746280240172,-450.0,0.00019726,2]
[359722654,1746280240181,-450.0,0.00019726,2]
[359722655,1746280240190,-721.79,0.00019726,2]
[359722656,1746280240199,-450.10351641,0.00019726,2]
[359722657,1746280240209,-450.0,0.00019726,2]
[359722658,1746280240218,-450.0,0.00019726,2]
[359722659,1746280240227,-450.0,0.00019726,2]
[359722660,1746280240237,-450.0,0.00019726,2]
[359722661,1746280240246,-450.0,0.00019726,2]
[359722662,1746280240256,-450.0,0.00019726,2]
[359722663,1746280240266,-368.92898897,0.00019726,2]
[359722664,1746280240275,-450.0,0.00019726,2]
[359722665,1746280240284,-450.0,0.00019726,2]
[359722666,1746280240294,-450.0,0.00019726,2]
[359722667,1746280240303,-450.0,0.00019726,2]
[359722668,1746280240312,-450.0,0.00019726,2]
[359722669,1746280240322,-450.0,0.00019726,2]
[359722670,1746280240331,-450.0,0.00019726,2]
[359722671,1746280240340,-450.0,0.00019726,2]
[359722672,1746280240350,-450.0,0.00019726,2]
[359722674,1746280240360,-450.0,0.00019726,2]
[359722675,1746280240369,-450.0,0.00019726,2]
[359722676,1746280240379,-450.0,0.00019726,2]
[359722677,1746280240388,-450.0,0.00019726,2]
[359722678,1746280240398,-450.0,0.00019726,2]
[359722679,1746280240408,-450.0,0.00019726,2]
[359722680,1746280240419,-1043.84,0.00019726,2]
[359722681,1746280240429,-450.0,0.00019726,2]
[359722682,1746280240440,-450.0,0.00019726,2]
[359722683,1746280240450,-450.0,0.00019726,2]
[359722684,1746280240459,-450.0,0.00019726,2]
[359722685,1746280240468,-450.0,0.00019726,2]
[359722686,1746280240478,-450.0,0.00019726,2]
[359722687,1746280240487,-450.0,0.00019726,2]
[359722688,1746280240497,-450.0,0.00019726,2]
[359722689,1746280240507,-450.0,0.00019726,2]
[359722690,1746280240517,-450.0,0.00019726,2]
[359722691,1746280240528,-454.67,0.00019726,2]
[359722692,1746280240538,-470.26,0.00019726,2]
[359722693,1746280240547,-450.0,0.00019726,2]
[359722694,1746280240557,-450.0,0.00019726,2]
[359722695,1746280240567,-450.0,0.00019726,2]
[359722696,1746280240577,-450.0,0.00019726,2]
[359722697,1746280240586,-450.0,0.00019726,2]
[359722698,1746280240595,-569.38,0.00019726,2]
[359722699,1746280240605,-450.0,0.00019726,2]
[359722700,1746280240615,-450.0,0.00019726,2]
[359722701,1746280240626,-450.0,0.00019726,2]
[359722702,1746280240635,-450.0,0.00019726,2]
[359722703,1746280240645,-450.0,0.00019726,2]
[359722704,1746280240655,-450.0,0.00019726,2]
[359722705,1746280240665,-450.0,0.00019726,2]
[359722706,1746280240675,-450.0,0.00019726,2]
[359722707,1746280240684,-450.0,0.00019726,2]
[359722708,1746280240694,-450.0,0.00019726,2]
[359722709,1746280240704,-450.0,0.00019726,2]
[359722710,1746280240714,-450.0,0.00019726,2]
[359722711,1746280240724,-450.0,0.00019726,2]
[359722712,1746280240737,-450.0,0.00019726,2]
[359722713,1746280240747,-525.84,0.00019726,2]
[359722714,1746280240757,-450.0,0.00019726,2]
[359722715,1746280240767,-470.0,0.00019726,2]
[359722716,1746280240778,-450.0,0.00019726,2]
[359722717,1746280240788,-450.0,0.00019726,2]
[359722718,1746280240798,-450.0,0.00019726,2]
[359722719,1746280240809,-450.0,0.00019726,2]
[359722720,1746280240819,-450.0,0.00019726,2]
[359722721,1746280240829,-450.0,0.00019726,2]
[359722722,1746280240839,-450.0,0.00019726,2]
[359722723,1746280240849,-450.0,0.00019726,2]
[359722724,1746280240858,-450.0,0.00019726,2]
[359722725,1746280240869,-450.0,0.00019726,2]
[359722726,1746280240879,-450.0,0.00019726,2]
[359722727,1746280240888,-450.0,0.00019726,2]
[359722728,1746280240899,-450.0,0.00019726,2]
[359722729,1746280240909,-450.0,0.00019726,2]
[359722730,1746280240919,-450.0,0.00019726,2]
[359722731,1746280240929,-450.0,0.00019726,2]
[359722732,1746280240939,-450.0,0.00019726,2]
[359722733,1746280240949,-450.0,0.00019726,2]
[359722734,1746280240959,-450.0,0.00019726,2]
[359722735,1746280240968,-450.0,0.00019726,2]
[359722736,1746280240977,-450.0,0.00019726,2]
[359722737,1746280240987,-450.0,0.00019726,2]
[359722738,1746280240997,-450.0,0.00019726,2]
[359722739,1746280241008,-450.0,0.00019726,2]
[359722740,1746280241017,-450.0,0.00019726,2]
[359722741,1746280241027,-764.16,0.00019726,2]
[359722742,1746280241036,-450.0,0.00019726,2]
[359722743,1746280241046,-736.45,0.00019726,2]
[359722744,1746280241055,-450.0,0.00019726,2]
[359722745,1746280241066,-450.0,0.00019726,2]
[359722746,1746280241075,-153.14775644,0.00019726,2]
[359722747,1746280241085,-450.79,0.00019726,2]
[359722748,1746280241095,-450.0,0.00019726,2]
[359722749,1746280241104,-150.0,0.00019726,2]
[359722750,1746280241114,-150.50631763,0.00019726,2]
[359722751,1746280241123,-500.0,0.00019726,2]
[359722752,1746280241133,-4080.75,0.00019726,2]
[359722753,1746280241142,-450.0,0.00019726,2]
[359722754,1746280241151,-500.0,0.00019726,2]
[359722755,1746280241161,-500.0,0.00019726,2]
[359722756,1746280241170,-450.97,0.00019726,2]
[359722757,1746280241180,-450.0,0.00019726,2]
[359722758,1746280241190,-450.0,0.00019726,2]
[359722759,1746280241199,-150.0,0.00019726,2]
[359722760,1746280241209,-641.96,0.00019726,2]
[359722761,1746280241220,-450.0,0.00019726,2]
[359722762,1746280241229,-449.73983441,0.00019726,2]
[359722763,1746280241240,-150.0,0.00019726,2]
[359722764,1746280241251,-500.0,0.00019726,2]
[359722765,1746280241260,-150.0,0.00019726,2]
[359722766,1746280241269,-450.0,0.00019726,2]
[359722767,1746280241279,-549.88,0.00019726,2]
[359722768,1746280241288,-500.0,0.00019726,2]
[359722769,1746280241298,-450.0,0.00019726,2]
[359722770,1746280241307,-2239.79,0.00019726,2]
[359722771,1746280241496,-450.0,0.00019726,2]
[359722772,1746280241517,-604.99,0.00019726,2]
[359722773,1746280241527,-450.0,0.00019726,2]
[359722774,1746280241537,-491.76,0.00019726,2]
[359722775,1746280241547,-808.32,0.00019726,2]
[359722776,1746280241556,-450.0,0.00019726,2]
[359722777,1746280241566,-2554.92,0.00019726,2]
[359722778,1746280241575,-1609.97,0.00019726,2]
[359722779,1746280241584,-450.0,0.00019726,2]
[359722780,1746280241594,-997.72,0.00019726,2]
[359722781,1746280241603,-450.0,0.00019726,2]
[359722782,1746280241613,-450.0,0.00019726,2]
[359722783,1746280241622,-484.03,0.00019726,2]
[359722784,1746280241632,-450.0,0.00019726,2]
[359722785,1746280241642,-450.0,0.00019726,2]
[359722786,1746280241651,-556.52,0.00019726,2]
[359722787,1746280241661,-1052.85,0.00019726,2]
[359722788,1746280241670,-616.09,0.00019726,2]
[359722789,1746280241679,-450.0,0.00019726,2]
[359722790,1746280241688,-450.0,0.00019726,2]
[359722791,1746280241698,-450.0,0.00019726,2]
[359722792,1746280241708,-500.0,0.00019726,2]
[359722793,1746280241718,-450.0,0.00019726,2]
[359722794,1746280241728,-5031.75,0.00019726,2]
[359722795,1746280241741,-450.0,0.00019726,2]
[359722796,1746280241751,-553.77,0.00019726,2]
[359722797,1746280241760,-450.0,0.00019726,2]
[359722798,1746280241770,-450.0,0.00019726,2]
[359722799,1746280241780,-1285.41,0.00019726,2]
[359722800,1746280241790,-450.0,0.00019726,2]
[359722801,1746280241799,-479.87,0.00019726,2]
[359722802,1746280241809,-1924.5,0.00019726,2]
[359722803,1746280241818,-500.0,0.00019726,2]
[359722804,1746280241828,-500.0,0.00019726,2]
[359722805,1746280241838,-482.8,0.00019726,2]
[359722806,1746280241847,-6211.51,0.00019726,2]
[359722807,1746280241856,-555.08,0.00019726,2]
[359722808,1746280241866,-450.0,0.00019726,2]
[359722809,1746280241876,-368.23329625,0.00019726,2]
[359722810,1746280241885,-450.0,0.00019726,2]
[359722811,1746280241895,-450.0,0.00019726,2]
[359722812,1746280241905,-450.0,0.00019726,2]
[359722813,1746280241915,-741.68,0.00019726,2]
[359722814,1746280241925,-1914.66,0.00019726,2]
[359722815,1746280241934,-450.0,0.00019726,2]
[359722816,1746280241944,-450.0,0.00019726,2]
[359722817,1746280241954,-551.94,0.00019726,2]
[359722818,1746280241964,-450.0,0.00019726,2]
[359722819,1746280241974,-767.77,0.00019726,2]
[359722820,1746280241983,-500.0,0.00019726,2]
[359722821,1746280241993,-777.46,0.00019726,2]
[359722822,1746280242003,-1942.09,0.00019726,2]
[359722823,1746280242012,-1365.79,0.00019726,2]
[359722824,1746280242022,-5952.18,0.00019726,2]
[359722825,1746280242031,-160.39430857,0.00019726,2]
[359722826,1746280242040,-450.0,0.00019726,2]
[359722827,1746280242050,-500.0,0.00019726,2]
[359722828,1746280242059,-150.0,0.00019726,2]
[359722829,1746280242068,-150.0,0.00019726,2]
[359722830,1746280242079,-450.0,0.00019726,2]
[359722831,1746280242088,-765.66,0.00019726,2]
[359722832,1746280242097,-106401.88,0.00019726,2]
[359722833,1746280242107,-450.0,0.00019726,2]
[359722836,1746280242116,-511.38,0.00019726,2]
[359722837,1746280242125,-450.0,0.00019726,2]
[359722838,1746280242134,-656.6,0.00019726,2]
[359722839,1746280242143,-450.0,0.00019726,2]
[359722840,1746280242152,-1047.03,0.00019726,2]
[359722841,1746280242161,-5499.71,0.00019726,2]
[359722842,1746280242171,-450.0,0.00019726,2]
[359722843,1746280242180,-450.0,0.00019726,2]
[359722844,1746280242189,-450.0,0.00019726,2]
[359722845,1746280242198,-450.0,0.00019726,2]
[359722846,1746280242207,-25429.18,0.00019726,2]
[359722847,1746280242216,-500.0,0.00019726,2]
[359722848,1746280242226,-515.31,0.00019726,2]
[359722850,1746280242235,-450.0,0.00019726,2]
[359722851,1746280242244,-450.0,0.00019726,2]
[359722852,1746280242253,-450.0,0.00019726,2]
[359722853,1746280242262,-450.0,0.00019726,2]
[359722854,1746280242271,-697.89,0.00019726,2]
[359722855,1746280242281,-1774.52,0.00019726,2]
[359722857,1746280242290,-642.47,0.00019726,2]
[359722858,1746280242299,-450.0,0.00019726,2]
[359722859,1746280242308,-450.0,0.00019726,2]
[359722860,1746280242316,-1042.33,0.00019726,2]
[359722861,1746280242325,-1285.14,0.00019726,2]
[359722862,1746280242335,-682.19,0.00019726,2]
[359722864,1746280242344,-450.0,0.00019726,2]
[359722865,1746280242353,-16047.61,0.00019726,2]
[359722867,1746280242362,-450.0,0.00019726,2]